bitfinex/quotes_ETHUSD_20240702
["timestamp","ask_amount","ask_price","bid_price","bid_amount"]
[1719958118091,9.28921641,3425.9,3425.3,0.955]
[1719958118290,9.28921641,3425.9,3425.0,0.55]
[1719958118291,0.05836406,3425.8,3425.0,0.55]
[1719958118494,2.4436,3425.7,3425.4,0.955]
[1719958118688,0.05836406,3425.6,3425.4,0.955]
[1719958119705,0.05836406,3425.6,3424.9,2.3098]
[1719958119872,0.05836406,3425.6,3425.4,0.955]
[1719958121832,0.05836406,3425.8,3425.4,0.955]
[1719958121984,0.05836406,3425.8,3425.7,0.955]
[1719958122185,8.7498,3425.9,3425.7,0.955]
[1719958123418,10.15482,3425.9,3425.7,0.955]
[1719958124026,8.7498,3425.9,3425.7,0.955]
[1719958136904,8.7498,3425.9,3425.8,2.4857]
[1719958141124,8.7498,3425.9,3425.8,5.95472]
[1719958144365,8.7498,3425.9,3425.8,8.87374]
[1719958156396,8.7498,3425.9,3425.8,9.82874]
[1719958156584,8.7498,3425.9,3425.8,11.103538]
[1719958167290,8.7498,3425.9,3425.8,14.022558]
[1719958167606,2.3062,3426.8,3426.5,2.91837]
[1719958167776,2.3062,3426.8,3426.7,0.955]
[1719958177015,2.3877,3427.6,3426.7,0.955]
[1719958177215,2.3877,3427.4,3427.2,0.955]
[1719958177367,3.08,3428.2,3427.2,0.955]
[1719958177368,0.05836406,3427.3,3427.2,0.955]
[1719958177569,2.44606406,3427.3,3427.2,0.955]
[1719958177763,2.44606406,3427.3,3427.0,0.955]
[1719958177968,0.05836406,3427.2,3427.0,0.955]
[1719958190008,0.05836406,3427.2,3426.5,2.91837]
[1719958190323,0.05836406,3427.2,3427.0,0.955]
[1719958190520,0.24460641,3427.1,3427.0,0.955]
[1719958190722,2.4989,3427.0,3426.8,0.955]
[1719958191046,0.05836406,3426.9,3426.8,0.955]
[1719958193662,3.0,3427.6,3426.8,0.955]
[1719958193663,2.3353,3427.2,3426.8,0.955]
[1719958193871,2.3353,3427.2,3427.1,0.955]
[1719958201254,2.4397,3427.9,3427.1,0.955]
[1719958201459,2.4397,3427.7,3427.5,0.955]
[1719958201774,0.05836406,3427.6,3427.5,0.955]
[1719958202943,0.05836406,3427.6,3427.3,0.955]
[1719958204937,0.05836406,3427.6,3426.8,5.36917]
[1719958205142,0.05836406,3427.6,3427.3,0.955]
[1719958225479,0.05836406,3427.6,3426.8,5.36917]
[1719958225480,0.05836406,3427.6,3427.5,0.955]
[1719958226004,2.33376406,3428.3,3427.5,0.955]
[1719958226190,0.05836406,3428.2,3427.9,0.955]
[1719958226396,0.29174047,3428.2,3427.9,0.955]
[1719958226706,8.7513,3428.1,3427.9,0.955]
[1719958226901,0.05836406,3428.0,3427.9,0.955]
[1719958227112,11.80966406,3428.0,3427.9,0.955]
[1719958227281,10.54150811,3428.0,3427.9,0.955]
[1719958227486,13.54150811,3428.0,3427.7,0.955]
[1719958227687,3.0,3427.9,3427.7,0.955]
[1719958227884,8.80966406,3427.8,3427.7,0.955]
[1719958228071,11.80966406,3427.8,3427.7,0.955]
[1719958231314,13.39135487,3427.8,3427.7,0.955]
[1719958231835,13.41743876,3427.8,3427.7,0.955]
[1719958234570,2.2754,3427.7,3426.6,2.91831]
[1719958234786,8.80966406,3427.6,3427.3,0.955]
[1719958235003,10.40566913,3427.6,3427.3,0.955]
[1719958235210,8.83638525,3427.6,3427.3,0.955]
[1719958240422,8.83638525,3427.6,3427.0,2.2997]
[1719958240423,8.83638525,3427.6,3427.5,0.955]
[1719958240596,8.77802119,3427.6,3427.5,0.955]
[1719958262166,8.77802119,3427.6,3427.2,2.91782]
[1719958262369,8.77802119,3427.6,3427.3,0.55]
[1719958262670,8.77802119,3427.6,3427.5,0.955]
[1719958263810,8.77802119,3427.6,3427.5,3.409]
[1719958264004,8.77802119,3427.6,3427.5,4.096674]
[1719958265964,8.77802119,3427.6,3427.5,7.014244]
[1719958271122,8.77802119,3427.6,3427.5,7.564244]
[1719958271418,8.7513,3427.6,3427.5,7.564244]
[1719958271787,8.77723377,3427.6,3427.5,7.564244]
[1719958276316,8.77723377,3427.6,3427.5,10.481814]
[1719958276538,0.02593377,3427.6,3427.5,10.481814]
[1719958276742,0.05836406,3428.2,3427.7,2.91734]
[1719958276921,0.05836406,3428.2,3428.1,0.955]
[1719958278644,0.05836406,3428.4,3428.1,0.955]
[1719958278847,0.0260186,3428.2,3428.1,0.955]
[1719958279010,0.05836406,3428.4,3428.1,0.955]
[1719958279209,0.0260186,3428.2,3427.8,1.0481584]
[1719958279410,0.05836406,3428.4,3428.1,0.955]
[1719958280514,0.05836406,3428.4,3427.7,2.91734]
[1719958280515,0.05836406,3428.4,3428.3,0.955]
[1719958282356,0.30157047,3428.4,3427.8,2.91731]
[1719958282514,2.3898,3428.3,3427.9,0.955]
[1719958282855,0.05836406,3428.2,3427.9,0.955]
[1719958284664,0.05836406,3428.2,3428.1,0.955]
[1719958284820,2.3898,3428.3,3428.1,0.955]
[1719958290547,2.46,3428.6,3428.1,0.955]
[1719958290731,0.05836406,3428.5,3428.3,0.955]
[1719958291526,8.7504,3428.4,3428.3,0.955]
[1719958294525,8.77653421,3428.4,3428.3,0.955]
[1719958301871,8.77653421,3428.4,3427.8,5.16831]
[1719958302035,8.77653421,3428.4,3428.0,0.955]
[1719958302036,0.05836406,3428.3,3428.0,0.955]
[1719958302233,0.08442059,3428.3,3428.0,0.955]
[1719958302460,0.08442059,3428.3,3427.8,5.16831]
[1719958302461,0.08442059,3428.3,3428.2,0.955]
[1719958304372,0.02605653,3428.3,3428.2,0.955]
[1719958312905,0.02605653,3428.3,3428.0,2.91715]
[1719958313114,0.02605653,3428.3,3428.0,3.725687]
[1719958313266,0.02605653,3428.3,3428.2,0.955]
[1719958317109,0.02605653,3428.3,3428.0,3.725687]
[1719958317314,0.02605653,3428.3,3428.2,0.955]
[1719958326387,0.02605653,3428.3,3428.2,4.42198]
[1719958326587,8.7504,3428.4,3428.3,2.91689]
[1719958326887,8.7504,3428.4,3428.3,3.46689]
[1719958328612,8.7504,3428.4,3428.3,6.38378]
[1719958328922,8.7504,3428.4,3428.3,7.33878]
[1719958330313,8.7504,3428.4,3428.3,0.55]
[1719958330512,8.7504,3428.4,3428.3,4.42189]
[1719958330715,8.7504,3428.4,3428.3,3.87189]
[1719958333253,8.7504,3428.4,3428.3,3.595782]
[1719958333562,8.7504,3428.4,3428.3,3.87189]
[1719958334530,8.77620355,3428.4,3428.3,3.87189]
[1719958338679,8.77620355,3428.4,3428.3,4.42189]
[1719958339657,8.7504,3428.4,3428.3,4.42189]
[1719958339828,8.77615423,3428.4,3428.3,4.42189]
[1719958342377,8.77615423,3428.4,3428.3,5.390086]
[1719958344433,8.77615423,3428.4,3428.3,8.306976]
[1719958346367,8.7504,3428.4,3428.3,8.306976]
[1719958363399,2.3713,3429.1,3428.8,2.91642]
[1719958363564,2.3713,3429.1,3429.0,0.955]
[1719958372014,2.3713,3429.1,3428.7,2.91651]
[1719958372304,2.52836406,3429.0,3428.9,0.955]
[1719958372505,2.47,3429.0,3428.9,0.955]
[1719958378897,2.3751,3429.5,3428.9,0.955]
[1719958379096,0.05836406,3429.4,3429.1,0.955]
[1719958385384,2.3133,3429.3,3429.1,0.955]
[1719958385582,0.05836406,3429.2,3429.1,0.955]
[1719958395396,0.05836406,3429.2,3428.7,2.9165]
[1719958395601,0.05836406,3429.2,3428.9,0.955]
[1719958404349,2.4106,3429.1,3428.7,0.955]
[1719958404513,0.05836406,3429.0,3428.7,0.955]
[1719958405342,0.05836406,3429.0,3428.3,2.809]
[1719958405543,0.05836406,3429.0,3428.1,2.254]
[1719958405858,2.4763,3428.9,3428.5,0.955]
[1719958406033,0.05836406,3428.8,3428.1,2.254]
[1719958406235,0.05836406,3428.8,3428.5,0.955]
[1719958407449,0.05836406,3428.8,3428.2,0.5254]
[1719958407450,0.05836406,3428.8,3428.7,0.955]
[1719958409626,0.05836406,3428.8,3428.2,3.44237]
[1719958409824,0.05836406,3428.8,3428.6,0.955]
[1719958431160,0.05836406,3428.8,3428.2,0.5254]
[1719958431383,0.05836406,3428.8,3428.5,0.955]
[1719958453821,2.4763,3428.9,3428.5,0.955]
[1719958454236,3.0,3429.5,3428.5,0.955]
[1719958454237,2.3179,3429.1,3428.5,0.955]
[1719958454422,2.3179,3429.1,3428.3,2.91682]
[1719958454423,0.05836406,3429.0,3428.7,0.955]
[1719958462456,0.05836406,3429.0,3428.9,0.955]
[1719958462615,2.3179,3429.1,3428.9,0.955]
[1719958462826,2.3179,3429.1,3428.7,0.955]
[1719958463013,0.05836406,3429.0,3428.7,0.955]
[1719958468367,0.05836406,3429.0,3428.4,5.18149]
[1719958468660,0.05836406,3429.0,3428.7,0.955]
[1719958470670,0.05836406,3429.0,3428.6,0.955]
[1719958476832,0.05836406,3429.0,3428.1,2.91705]
[1719958476833,0.29599047,3429.0,3428.1,2.91705]
[1719958477038,2.3928,3428.9,3428.3,0.955]
[1719958477435,0.05836406,3428.8,3428.5,0.955]
[1719958485799,0.05836406,3428.8,3428.5,2.4811]
[1719958486101,0.05836406,3429.2,3428.7,0.955]
[1719958486301,0.53149641,3429.1,3428.7,0.955]
[1719958486505,0.05836406,3429.0,3428.7,0.955]
[1719958490920,0.05836406,3429.0,3428.3,2.4811]
[1719958491224,0.05836406,3429.0,3428.8,0.955]
[1719958494918,0.05836406,3429.0,3428.3,2.4811]
[1719958495112,0.05836406,3429.0,3428.6,0.955]
[1719958495616,0.34301011,3429.0,3428.6,0.955]
[1719958496376,2.77801011,3429.0,3428.6,0.955]
[1719958496820,2.77801011,3429.0,3428.3,2.4811]
[1719958496989,2.49336406,3429.0,3428.6,0.955]
[1719958500514,3.05836406,3429.0,3427.8,3.87232]
[1719958500686,2.4387,3428.9,3427.8,3.87232]
[1719958500883,2.4387,3428.7,3427.8,3.87232]
[1719958501138,2.4387,3428.7,3428.0,0.955]
[1719958501139,0.05836406,3428.6,3428.0,0.955]
[1719958501924,2.4387,3428.5,3428.0,0.955]
[1719958502089,0.05836406,3428.4,3428.0,0.955]
[1719958502730,0.05836406,3428.4,3427.6,5.31692]
[1719958502940,0.05836406,3428.4,3427.9,0.955]
[1719958503623,0.05836406,3428.4,3428.1,0.955]
[1719958504962,2.36686406,3428.7,3428.3,0.955]
[1719958505236,3.65155047,3428.7,3428.4,0.955]
[1719958505397,2.36686406,3428.7,3428.4,0.955]
[1719958507036,2.36686406,3428.7,3428.2,0.955]
[1719958508122,2.36686406,3428.7,3427.6,2.91746]
[1719958508429,2.2646,3428.5,3428.0,0.955]
[1719958508620,0.05836406,3428.4,3428.0,0.955]
[1719958512847,2.3768,3428.3,3428.0,0.955]
[1719958513005,0.05836406,3428.2,3428.0,0.955]
[1719958513351,0.05836406,3428.2,3427.5,2.3385]
[1719958513648,0.05836406,3428.2,3427.4,2.91764]
[1719958513649,0.05836406,3428.2,3427.9,0.955]
[1719958515228,0.05836406,3428.2,3427.3,5.22454]
[1719958515431,0.05836406,3428.2,3427.9,0.955]
[1719958515745,0.05836406,3428.2,3427.4,0.55]
[1719958515931,0.05836406,3428.2,3427.9,0.955]
[1719958516107,0.30188047,3428.2,3427.9,0.955]
[1719958520960,2.4986,3428.1,3427.8,0.955]
[1719958521125,0.05836406,3428.0,3427.8,0.955]
[1719958522693,0.05836406,3428.0,3427.2,2.91779]
[1719958522871,0.05836406,3428.0,3427.8,0.955]
[1719958523064,0.31406047,3428.0,3427.8,0.955]
[1719958528082,0.05836406,3428.0,3427.8,0.955]
[1719958530349,2.4594,3427.9,3427.0,5.19619]
[1719958530702,0.05836406,3427.8,3427.4,0.955]
[1719958530991,0.05836406,3427.8,3427.6,0.955]
[1719958531282,0.05836406,3427.8,3427.0,5.19619]
[1719958531482,0.05836406,3427.8,3427.6,0.955]
[1719958542090,3.0,3428.6,3427.6,0.955]
[1719958542091,2.3513,3428.1,3427.6,0.955]
[1719958542292,0.05836406,3428.0,3427.9,0.955]
[1719958543102,0.05836406,3428.0,3427.3,2.3483]
[1719958543103,0.05836406,3428.0,3427.8,0.955]
[1719958547082,2.417,3428.6,3427.8,0.955]
[1719958547306,1.11993759,3428.5,3427.8,0.955]
[1719958547511,3.90776406,3428.5,3427.8,0.955]
[1719958548236,2.438,3428.4,3427.8,0.955]
[1719958548388,0.05836406,3428.3,3427.4,2.91764]
[1719958548720,5.438,3428.4,3427.4,2.91764]
[1719958548721,2.438,3428.1,3427.9,0.955]
[1719958552799,2.438,3428.1,3427.4,2.91764]
[1719958553004,0.05836406,3428.0,3427.9,0.955]
[1719958553241,2.49636406,3428.1,3427.9,0.955]
[1719958556504,3.13887447,3428.1,3427.9,0.955]
[1719958558523,3.13887447,3428.1,3427.8,0.955]
[1719958561225,2.49636406,3428.1,3427.8,0.955]
[1719958561529,0.05836406,3428.0,3427.8,0.955]
[1719958569939,0.05836406,3428.0,3427.8,0.955]
[1719958572775,0.05836406,3428.2,3427.8,0.955]
[1719958576104,0.05836406,3428.6,3428.0,0.955]
[1719958576265,0.60236047,3428.6,3428.2,0.955]
[1719958576601,0.05836406,3428.6,3428.2,0.955]
[1719958579997,0.05836406,3428.6,3428.0,0.955]
[1719958589960,8.7507,3428.5,3428.0,0.955]
[1719958590167,3.05836406,3428.4,3428.0,0.955]
[1719958591140,5.40656406,3428.4,3428.0,0.955]
[1719958591327,1.41572641,3428.3,3428.0,0.955]
[1719958591637,0.05836406,3428.2,3428.0,0.955]
[1719958598862,0.05836406,3428.3,3428.0,0.955]
[1719958616444,3.0,3428.4,3428.0,0.955]
[1719958616644,3.05836406,3428.4,3428.2,0.955]
[1719958617044,8.7507,3428.5,3428.2,0.955]
[1719958617248,8.7507,3428.5,3428.3,2.473]
[1719958617495,8.7507,3428.5,3428.4,0.955]
[1719958621294,8.7507,3428.5,3428.4,1.27707]
[1719958623282,8.7507,3428.5,3428.0,5.40603]
[1719958623478,8.7507,3428.5,3428.4,0.955]
[1719958624492,2.364,3428.4,3427.6,5.40632]
[1719958624698,2.364,3428.4,3428.0,0.955]
[1719958624699,2.42236406,3428.4,3428.0,0.955]
[1719958624854,2.42236406,3428.4,3428.2,0.955]
[1719958624855,0.05836406,3428.4,3428.2,0.955]
[1719958635030,8.7507,3428.5,3428.2,0.955]
[1719958635195,8.7507,3428.5,3428.4,0.955]
[1719958683748,8.7507,3428.5,3428.1,2.91702]
[1719958683925,8.7507,3428.5,3428.4,0.955]
[1719958710711,8.7507,3428.5,3427.5,0.61373824]
[1719958710712,2.2652,3428.4,3427.5,0.61373824]
[1719958711021,2.2652,3428.4,3427.9,0.955]
[1719958711022,0.05836406,3428.3,3427.9,0.955]
[1719958711512,0.05836406,3428.3,3428.1,0.955]
[1719958718665,0.05836406,3428.3,3427.6,5.24178]
[1719958718808,0.05836406,3428.3,3428.2,0.955]
[1719958721360,0.05836406,3428.3,3427.4,5.23738]
[1719958721508,0.05836406,3428.3,3427.1,2.91791]
[1719958721509,2.4575,3428.2,3427.1,2.91791]
[1719958721713,2.3727,3428.0,3427.7,0.955]
[1719958721976,8.80906406,3427.9,3427.7,0.955]
[1719958723433,8.7507,3427.9,3427.7,0.955]
[1719958752804,8.7507,3427.9,3427.6,2.91748]
[1719958753005,8.7507,3427.9,3427.8,0.955]
[1719958755557,11.2424,3427.9,3427.8,0.955]
[1719958763485,8.7507,3427.9,3427.8,0.955]
[1719958765870,8.7507,3427.9,3427.4,2.91759]
[1719958766071,8.7507,3427.9,3427.8,0.955]
[1719958774171,8.7507,3427.9,3427.8,3.87232]
[1719958774395,8.7507,3427.9,3427.8,6.15202]
[1719958774703,1.1577,3427.9,3427.8,9.61934]
[1719958774911,1.1577,3427.9,3427.8,11.65813888]
[1719958775113,1.1577,3427.9,3427.8,13.18128975]
[1719958775281,0.05836406,3428.8,3428.1,2.2797]
[1719958775487,2.3211,3428.9,3428.7,0.955]
[1719958779388,2.4123,3429.2,3428.7,0.955]
[1719958779592,0.05836406,3429.1,3428.4,2.4649294]
[1719958779878,0.05836406,3429.1,3429.0,0.955]
[1719958785309,2.4123,3429.2,3429.0,0.955]
[1719958786712,0.05836406,3429.9,3429.0,0.955]
[1719958786713,2.4123,3429.8,3429.0,0.955]
[1719958787016,2.4123,3429.6,3429.4,0.955]
[1719958787211,0.05836406,3429.5,3429.2,0.955]
[1719958788317,0.05836406,3429.5,3429.4,0.955]
[1719958791992,2.4123,3429.6,3429.4,0.955]
[1719958792190,2.4123,3430.1,3429.4,0.955]
[1719958792418,0.05836406,3430.0,3429.4,0.955]
[1719958792613,2.4123,3429.9,3429.4,0.955]
[1719958792814,0.30543047,3429.8,3429.4,0.955]
[1719958793023,0.05836406,3429.7,3429.4,0.955]
[1719958793431,0.05836406,3429.7,3429.6,0.955]
[1719958793618,3.05836406,3429.8,3429.6,0.955]
[1719958793826,2.4123,3429.9,3429.6,0.955]
[1719958793827,0.05836406,3429.7,3429.6,0.955]
[1719958795033,0.05836406,3429.8,3429.6,0.955]
[1719958797867,2.4123,3429.9,3429.6,0.955]
[1719958798002,2.3951,3430.3,3429.8,0.955]
[1719958798203,0.30371047,3430.2,3429.8,0.955]
[1719958798440,3.30371047,3430.2,3429.8,0.955]
[1719958799609,2.45346406,3430.1,3429.8,0.955]
[1719958799922,5.45346406,3430.1,3429.8,0.955]
[1719958805064,3.05836406,3430.1,3429.2,2.3892]
[1719958805374,3.05836406,3430.1,3429.2,0.955]
[1719958805380,2.4896,3429.9,3429.2,0.955]
[1719958805529,8.80556406,3429.8,3429.2,0.955]
[1719958805728,0.05836406,3429.7,3429.2,0.955]
[1719958805947,8.7472,3429.6,3429.2,0.955]
[1719958806146,0.05836406,3429.5,3429.2,0.955]
[1719958806566,0.05836406,3429.5,3428.7,5.97049327]
[1719958806765,0.05836406,3429.5,3429.2,0.955]
[1719958810474,0.05836406,3429.5,3429.4,0.955]
[1719958816188,8.7472,3429.6,3429.4,0.955]
[1719958822500,0.05836406,3429.5,3429.1,0.955]
[1719958823199,8.7472,3429.4,3429.1,0.955]
[1719958830896,8.7472,3429.4,3429.3,0.955]
[1719958831804,8.80127461,3429.4,3429.3,0.955]
[1719958833823,8.80127461,3429.4,3428.8,2.2904]
[1719958834118,0.05836406,3429.3,3429.0,0.955]
[1719958834321,0.1124864,3429.3,3429.0,0.955]
[1719958835489,0.1124864,3429.3,3429.2,0.955]
[1719958861963,0.05412234,3429.3,3429.2,0.955]
[1719958865790,0.05412234,3429.3,3428.8,5.246]
[1719958865940,0.05412234,3429.3,3429.2,0.955]
[1719958867886,0.1124864,3429.3,3428.6,2.91655]
[1719958868084,0.1124864,3429.3,3429.0,0.955]
[1719958870093,0.1124864,3429.3,3428.6,2.257]
[1719958870261,1.23904504,3429.3,3428.9,0.955]
[1719958870455,1.23904504,3429.3,3428.7,0.955]
[1719958870687,1.23904504,3429.3,3428.9,0.955]
[1719958871385,2.4586,3429.2,3428.9,0.955]
[1719958871558,0.05836406,3429.1,3428.9,0.955]
[1719958871881,0.10878975,3429.1,3428.9,0.955]
[1719958875886,0.05042569,3429.1,3428.9,0.955]
[1719958876457,8.7472,3429.4,3428.9,0.955]
[1719958876458,0.05836406,3429.3,3428.9,0.955]
[1719958876660,0.05836406,3429.3,3429.2,0.955]
[1719958879470,0.10876419,3429.3,3429.2,0.955]
[1719958886890,0.10876419,3429.3,3429.1,0.955]
[1719958890104,1.22889061,3429.3,3428.6,2.3156]
[1719958890276,0.05836406,3429.2,3428.3,2.4991]
[1719958890596,0.04932908,3429.1,3428.7,0.955]
[1719958892276,0.04932908,3429.1,3428.9,0.955]
[1719958893792,2.3318,3429.0,3428.7,0.955]
[1719958894008,0.05836406,3428.9,3428.7,0.955]
[1719958894184,0.10665155,3428.9,3428.7,0.955]
[1719958897023,0.10665155,3428.9,3428.3,2.4991]
[1719958897314,0.10665155,3428.9,3428.7,0.955]
[1719958898110,0.3504967,3428.9,3427.9,2.9172]
[1719958898314,0.3504967,3428.9,3427.9,2.4499]
[1719958898315,2.4434,3428.8,3427.9,2.4499]
[1719958898661,0.05836406,3428.7,3428.1,0.955]
[1719958898798,8.80556406,3428.7,3428.1,0.955]
[1719958898983,0.04817518,3428.6,3428.1,0.955]
[1719958899316,1.1778891,3428.6,3428.1,0.955]
[1719958899622,1.1778891,3428.6,3428.3,0.955]
[1719958900414,0.05836406,3428.5,3427.9,2.4499]
[1719958900618,0.05836406,3428.5,3428.2,0.955]
[1719958900812,0.04803631,3428.4,3428.2,0.955]
[1719958901016,0.04803631,3428.4,3427.6,0.61330815]
[1719958901213,2.3935,3428.2,3427.6,0.61330815]
[1719958901521,0.10626076,3428.1,3427.2,2.3372]
[1719958901683,0.10626076,3428.1,3427.7,0.955]
[1719958902277,8.7472,3428.0,3427.7,0.955]
[1719958902489,0.10622345,3427.9,3427.7,0.955]
[1719958902694,0.04785939,3427.9,3427.7,0.955]
[1719958915545,0.10622345,3427.9,3427.7,0.955]
[1719958921232,0.04785939,3427.9,3427.7,0.955]
[1719958924634,0.10622345,3427.9,3427.7,0.955]
[1719958925628,0.04785939,3427.9,3427.7,0.955]
[1719958926201,0.10622345,3427.9,3427.2,2.3372]
[1719958926404,0.10622345,3427.9,3427.6,0.955]
[1719958931306,0.04785939,3427.9,3427.8,0.955]
[1719958931644,0.04785939,3427.9,3427.8,1.27808]
[1719958938390,0.04785939,3427.9,3427.8,0.955]
[1719958939980,0.04785939,3427.9,3427.5,2.3611]
[1719958940136,0.04785939,3427.9,3427.8,0.955]
[1719958943072,0.10622345,3427.9,3427.3,2.3611]
[1719958943281,0.10622345,3427.9,3427.5,0.955]
[1719958946075,0.10622345,3427.9,3427.7,0.955]
[1719958948362,0.04785939,3427.9,3427.7,0.955]
[1719958983439,0.04785939,3427.9,3427.7,6.1945]
[1719958985943,0.04785939,3427.9,3427.7,5.2395]
[1719958986242,0.04785939,3427.9,3427.8,0.955]
[1719958993779,0.04589923,3427.9,3427.8,0.955]
[1719958999338,0.04589923,3427.9,3427.5,2.4929]
[1719958999545,0.04589923,3427.9,3427.3,5.39604]
[1719958999777,0.04589923,3427.9,3427.7,0.955]
[1719959012698,0.04589923,3427.9,3427.4,0.55]
[1719959012899,0.10426329,3427.9,3427.1,5.2359]
[1719959013111,0.10426329,3427.9,3427.7,0.955]
[1719959014680,0.10426329,3427.9,3427.2,0.55]
[1719959014993,0.10426329,3427.9,3427.7,0.955]
[1719959015394,0.10426329,3427.9,3427.2,0.55]
[1719959015602,2.2629,3427.8,3427.6,0.955]
[1719959015803,2.3088467,3427.8,3427.6,0.955]
[1719959018722,2.3088467,3427.8,3426.7,2.341]
[1719959018723,2.4095,3427.6,3426.7,2.341]
[1719959018949,2.3632,3427.4,3426.4,2.326]
[1719959019137,2.3632,3427.2,3426.8,0.955]
[1719959019299,2.42156406,3427.1,3425.8,0.61360044]
[1719959019637,2.42156406,3427.1,3425.6,0.92040066]
[1719959019638,1.16718439,3427.0,3425.6,2.91916]
[1719959019804,0.05836406,3426.9,3426.2,0.955]
[1719959020004,0.10407886,3426.9,3426.2,0.955]
[1719959020528,8.7472,3426.8,3426.2,0.955]
[1719959020832,0.05836406,3426.7,3426.2,0.955]
[1719959021001,0.98917641,3426.7,3426.2,0.955]
[1719959021206,2.4423,3426.6,3426.2,0.955]
[1719959021435,0.05836406,3426.5,3426.2,0.955]
[1719959021928,0.04547338,3426.4,3426.2,0.955]
[1719959025404,8.7472,3426.8,3426.2,1.01336644]
[1719959025732,8.7472,3426.8,3426.7,0.955]
[1719959029639,8.79238426,3426.8,3426.7,0.955]
[1719959038238,8.79238426,3426.8,3426.2,2.91867]
[1719959038643,0.05836406,3426.7,3426.6,0.955]
[1719959038837,9.90320269,3426.8,3426.6,0.955]
[1719959039060,0.10359752,3426.7,3425.7,5.30121]
[1719959039233,2.3158,3426.6,3426.1,0.955]
[1719959039443,0.05836406,3426.5,3426.1,0.955]
[1719959039669,0.05836406,3426.5,3426.3,0.955]
[1719959039825,0.04524169,3426.4,3426.3,0.955]
[1719959040319,0.04524169,3426.4,3425.7,5.30121]
[1719959040525,0.04524169,3426.4,3426.3,0.955]
[1719959041367,0.04524169,3426.4,3425.5,2.91924]
[1719959041556,0.04524169,3426.4,3426.0,0.955]
[1719959041741,0.28718226,3426.4,3426.0,0.955]
[1719959041926,8.80556406,3426.3,3426.0,0.955]
[1719959042262,0.10330149,3426.2,3426.0,0.955]
[1719959044430,0.10330149,3426.2,3425.4,5.40601]
[1719959044628,0.10330149,3426.2,3425.8,0.955]
[1719959044830,8.7472,3426.1,3425.8,0.955]
[1719959045158,8.79216266,3426.1,3426.0,0.955]
[1719959047240,11.22026266,3426.1,3425.9,0.955]
[1719959047474,0.05836406,3426.0,3425.9,0.955]
[1719959047632,1.18622673,3426.0,3425.9,0.955]
[1719959047967,1.2311826,3426.0,3425.9,0.955]
[1719959052267,1.2311826,3426.0,3425.8,0.955]
[1719959052445,1.2311826,3426.0,3425.2,2.91953]
[1719959052648,8.7472,3425.9,3425.7,0.955]
[1719959053049,0.04483451,3425.8,3425.7,0.955]
[1719959054058,2.55369857,3425.8,3425.2,2.91953]
[1719959054259,2.55369857,3425.8,3425.7,0.955]
[1719959055346,2.49533451,3425.8,3425.7,0.955]
[1719959055546,0.04483451,3425.8,3425.7,0.955]
[1719959056074,0.10319857,3425.8,3425.7,0.955]
[1719959056647,0.04483451,3425.8,3425.7,0.955]
[1719959056870,0.04483451,3425.8,3425.7,0.387418]
[1719959057048,8.7472,3425.9,3425.7,1.342418]
[1719959057248,0.04482517,3425.8,3425.7,1.342418]
[1719959057546,8.7472,3425.9,3425.7,1.342418]
[1719959057747,0.04482517,3425.8,3425.7,1.342418]
[1719959057956,8.7472,3425.9,3425.7,1.342418]
[1719959058156,0.04482517,3425.8,3425.7,1.342418]
[1719959058363,8.7472,3425.9,3425.7,1.342418]
[1719959058563,0.04482517,3425.8,3425.7,1.342418]
[1719959058782,8.7472,3425.9,3425.7,1.342418]
[1719959058996,0.04482517,3425.8,3425.7,1.342418]
[1719959059175,8.7472,3425.9,3425.7,1.342418]
[1719959059382,0.04482517,3425.8,3425.7,1.342418]
[1719959059571,8.7472,3425.9,3425.7,1.342418]
[1719959059768,0.04482517,3425.8,3425.7,1.342418]
[1719959060084,8.7472,3425.9,3425.7,1.342418]
[1719959060452,0.04482517,3425.8,3425.7,1.342418]
[1719959060663,8.7472,3425.9,3425.7,1.342418]
[1719959061052,0.04482517,3425.8,3425.7,1.342418]
[1719959061254,8.7472,3425.9,3425.7,1.342418]
[1719959061649,0.04482517,3425.8,3425.7,1.342418]
[1719959061874,8.7472,3425.9,3425.7,1.342418]
[1719959062054,8.7472,3425.9,3425.8,0.4261598]
[1719959068285,8.7472,3425.9,3425.7,4.261508]
[1719959069889,8.7472,3425.9,3425.8,2.91902]
[1719959074586,8.79207152,3425.9,3425.8,2.91902]
[1719959077380,8.79207152,3425.9,3425.8,3.87402]
[1719959080374,8.79207152,3425.9,3425.8,2.91902]
[1719959080575,8.79207152,3425.9,3425.8,0.955]
[1719959094102,8.7472,3425.9,3425.8,0.955]
[1719959094529,8.79205645,3425.9,3425.8,0.955]
[1719959095144,8.79205645,3425.9,3425.8,3.87402]
[1719959095311,8.79205645,3425.9,3425.8,4.802799]
[1719959099205,8.79205645,3425.9,3425.8,3.87402]
[1719959112962,8.79205645,3425.9,3425.8,6.16192]
[1719959113643,8.79205645,3425.9,3425.8,9.08094]
[1719959114034,8.79205645,3425.9,3425.8,6.79304]
[1719959117146,8.79205645,3425.9,3425.8,3.87402]
[1719959117353,8.79205645,3425.9,3425.7,2.9191]
[1719959117675,8.79205645,3425.9,3425.8,0.955]
[1719959136021,8.79205645,3425.9,3424.7,0.61378117]
[1719959136022,2.3131,3425.8,3424.7,0.61378117]
[1719959136220,12.9101121,3425.9,3425.1,0.955]
[1719959136221,2.3131,3425.6,3425.1,0.955]